[Event "Titled Tuesday Blitz June 20 Early 2023"]
[White "Devaev, Alexander"]
[Black "Rosh Jain"]
[WhiteFideId "4169395"]
[BlackFideId "25789465"]
[WhiteElo "2172"]
[BlackElo "2233"]
[Result "1-0"]
[Round "2"]
[TimeControl "180+2"]
[Date "2023.06.20"]
[WhiteClock "0:01:50"]
[BlackClock "0:01:32"]
[Board "194"]

1. d4 {[%clk 0:03:00]}  Nf6 {[%clk 0:02:52]} 2. c4 {[%clk 0:03:00]}  e6 {[%clk 0:02:47]} 3. Nf3 {[%clk 0:03:00]}  d5 {[%clk 0:02:46]} 4. Nc3 {[%clk 0:03:01]}  c5 {[%clk 0:02:46]} 5. cxd5 {[%clk 0:03:00]}  Nxd5 {[%clk 0:02:47]} 6. e3 {[%clk 0:02:59]}  Nc6 {[%clk 0:02:46]} 7. Bc4 {[%clk 0:02:58]}  Nxc3 {[%clk 0:02:45]} 8. bxc3 {[%clk 0:02:58]}  Be7 {[%clk 0:02:45]} 9. O-O {[%clk 0:02:58]}  cxd4 {[%clk 0:02:45]} 10. cxd4 {[%clk 0:02:58]}  O-O {[%clk 0:02:44]} 11. Bb2 {[%clk 0:02:58]}  b6 {[%clk 0:02:44]} 12. e4 {[%clk 0:02:57]}  Na5 {[%clk 0:02:42]} 13. Bd3 {[%clk 0:02:57]}  Bb7 {[%clk 0:02:41]} 14. Qe2 {[%clk 0:02:58]}  Nc6 {[%clk 0:02:36]} 15. Rad1 {[%clk 0:02:57]}  Nb4 {[%clk 0:02:35]} 16. Bc4 {[%clk 0:02:58]}  a5 {[%clk 0:02:35]} 17. a3 {[%clk 0:02:58]}  Nc6 {[%clk 0:02:30]} 18. d5 {[%clk 0:02:54]}  exd5 {[%clk 0:02:29]} 19. exd5 {[%clk 0:02:09]}  Na7 {[%clk 0:02:26]} 20. Ne5 {[%clk 0:02:09]}  Nc8 {[%clk 0:02:01]} 21. Nc6 {[%clk 0:02:04]}  Bxc6 {[%clk 0:01:55]} 22. dxc6 {[%clk 0:02:05]}  Qe8 {[%clk 0:01:52]} 23. Rfe1 {[%clk 0:01:59]}  Ra7 {[%clk 0:01:48]} 24. Bb5 {[%clk 0:01:55]}  Rc7 {[%clk 0:01:32]} 25. Qe5 {[%clk 0:01:50]} 1-0


[Site "https://www.chess.com"]

[Event "Titled Tuesday Blitz June 20 Early 2023"]
[White "Andreassen, Lars"]
[Black "angelgab3"]
[WhiteFideId "1504878"]
[WhiteElo "2119"]
[BlackElo "2506"]
[Result "0-1"]
[Round "2"]
[TimeControl "180+2"]
[Date "2023.06.20"]
[WhiteClock "0:00:00"]
[BlackClock "0:00:14"]
[Board "195"]

1. d4 {[%clk 0:03:00]}  Nf6 {[%clk 0:02:58]} 2. Nf3 {[%clk 0:03:00]}  e6 {[%clk 0:02:53]} 3. Bg5 {[%clk 0:03:00]}  c5 {[%clk 0:02:50]} 4. e3 {[%clk 0:03:00]}  Nc6 {[%clk 0:02:47]} 5. c3 {[%clk 0:02:57]}  Be7 {[%clk 0:02:43]} 6. Nbd2 {[%clk 0:02:56]}  b6 {[%clk 0:02:43]} 7. Bd3 {[%clk 0:02:55]}  Bb7 {[%clk 0:02:44]} 8. O-O {[%clk 0:02:53]}  O-O {[%clk 0:02:44]} 9. e4 {[%clk 0:02:49]}  cxd4 {[%clk 0:02:44]} 10. cxd4 {[%clk 0:02:49]}  d6 {[%clk 0:02:45]} 11. Re1 {[%clk 0:02:46]}  Rc8 {[%clk 0:02:44]} 12. Rc1 {[%clk 0:02:46]}  h6 {[%clk 0:02:37]} 13. Bh4 {[%clk 0:02:45]}  Nh5 {[%clk 0:02:37]} 14. Bxe7 {[%clk 0:02:42]}  Qxe7 {[%clk 0:02:35]} 15. a3 {[%clk 0:02:30]}  Qf6 {[%clk 0:02:27]} 16. Nb3 {[%clk 0:02:13]}  Nf4 {[%clk 0:02:22]} 17. Bf1 {[%clk 0:02:11]}  Ne7 {[%clk 0:02:17]} 18. Rxc8 {[%clk 0:02:07]}  Rxc8 {[%clk 0:02:16]} 19. g3 {[%clk 0:01:57]}  Nfg6 {[%clk 0:02:11]} 20. Bg2 {[%clk 0:01:51]}  Nc6 {[%clk 0:01:39]} 21. Qd2 {[%clk 0:01:42]}  Qd8 {[%clk 0:01:36]} 22. Rd1 {[%clk 0:01:36]}  Nce7 {[%clk 0:01:32]} 23. Ne1 {[%clk 0:01:28]}  Rc7 {[%clk 0:01:26]} 24. Rc1 {[%clk 0:01:26]}  Rxc1 {[%clk 0:01:25]} 25. Qxc1 {[%clk 0:01:19]}  Qa8 {[%clk 0:01:26]} 26. Qc2 {[%clk 0:01:16]}  Ba6 {[%clk 0:01:12]} 27. Nc1 {[%clk 0:01:11]}  d5 {[%clk 0:01:09]} 28. e5 {[%clk 0:01:09]}  Nf5 {[%clk 0:01:06]} 29. Nf3 {[%clk 0:01:07]}  Qd8 {[%clk 0:01:00]} 30. Na2 {[%clk 0:01:04]}  Bc4 {[%clk 0:00:46]} 31. b3 {[%clk 0:01:02]}  Bb5 {[%clk 0:00:47]} 32. a4 {[%clk 0:00:59]}  Be8 {[%clk 0:00:46]} 33. Bf1 {[%clk 0:00:51]}  f6 {[%clk 0:00:44]} 34. Ba6 {[%clk 0:00:44]}  Qb8 {[%clk 0:00:36]} 35. exf6 {[%clk 0:00:41]}  gxf6 {[%clk 0:00:37]} 36. h4 {[%clk 0:00:34]}  Nd6 {[%clk 0:00:35]} 37. Nc1 {[%clk 0:00:32]}  Ne4 {[%clk 0:00:34]} 38. Bd3 {[%clk 0:00:29]}  f5 {[%clk 0:00:33]} 39. Ne2 {[%clk 0:00:27]}  Nf6 {[%clk 0:00:27]} 40. Kg2 {[%clk 0:00:24]}  Kg7 {[%clk 0:00:26]} 41. Qc3 {[%clk 0:00:20]}  Qd6 {[%clk 0:00:20]} 42. Qc8 {[%clk 0:00:17]}  Qe7 {[%clk 0:00:19]} 43. Qb8 {[%clk 0:00:15]}  Nf8 {[%clk 0:00:19]} 44. Ne5 {[%clk 0:00:11]}  Ng8 {[%clk 0:00:16]} 45. f4 {[%clk 0:00:11]}  Ng6 {[%clk 0:00:16]} 46. Nxg6 {[%clk 0:00:11]}  Bxg6 {[%clk 0:00:17]} 47. Nc3 {[%clk 0:00:11]}  Bh5 {[%clk 0:00:17]} 48. Nb5 {[%clk 0:00:11]}  a5 {[%clk 0:00:18]} 49. Nc7 {[%clk 0:00:11]}  Nf6 {[%clk 0:00:17]} 50. Qc8 {[%clk 0:00:07]}  Kf7 {[%clk 0:00:15]} 51. Bb5 {[%clk 0:00:06]}  Bd1 {[%clk 0:00:15]} 52. b4 {[%clk 0:00:00]}  axb4 {[%clk 0:00:14]} 0-1


[Site "https://www.chess.com"]

[Event "Titled Tuesday Blitz June 20 Early 2023"]
[White "Kochiev, Ivan"]
[Black "Rodriguez Santiago, Jaime"]
[WhiteFideId "2917890"]
[BlackFideId "3100898"]
[WhiteElo "2287"]
[BlackElo "2025"]
[Result "1-0"]
[Round "2"]
[TimeControl "180+2"]
[Date "2023.06.20"]
[WhiteClock "0:00:31"]
[BlackClock "0:00:21"]
[Board "196"]

1. e4 {[%clk 0:03:00]}  c6 {[%clk 0:02:59]} 2. d4 {[%clk 0:03:00]}  d5 {[%clk 0:02:58]} 3. Nc3 {[%clk 0:02:58]}  dxe4 {[%clk 0:02:58]} 4. Nxe4 {[%clk 0:02:59]}  Nf6 {[%clk 0:02:58]} 5. Nxf6+ {[%clk 0:02:58]}  exf6 {[%clk 0:02:59]} 6. c3 {[%clk 0:02:59]}  Bd6 {[%clk 0:02:59]} 7. Bd3 {[%clk 0:03:00]}  O-O {[%clk 0:02:59]} 8. Ne2 {[%clk 0:03:01]}  Re8 {[%clk 0:02:59]} 9. O-O {[%clk 0:03:02]}  Nd7 {[%clk 0:02:58]} 10. Ng3 {[%clk 0:03:02]}  g6 {[%clk 0:02:56]} 11. Ne4 {[%clk 0:02:52]}  Bf8 {[%clk 0:02:54]} 12. Bf4 {[%clk 0:02:52]}  Nb6 {[%clk 0:02:50]} 13. Re1 {[%clk 0:02:47]}  Be6 {[%clk 0:02:43]} 14. Qf3 {[%clk 0:02:23]}  Nd5 {[%clk 0:02:32]} 15. Bd2 {[%clk 0:02:21]}  Bg7 {[%clk 0:02:17]} 16. Rad1 {[%clk 0:02:12]}  b5 {[%clk 0:02:07]} 17. Nc5 {[%clk 0:02:09]}  a6 {[%clk 0:01:52]} 18. h3 {[%clk 0:02:03]}  Qd6 {[%clk 0:01:33]} 19. Re2 {[%clk 0:01:41]}  f5 {[%clk 0:01:24]} 20. Rde1 {[%clk 0:01:31]}  Nc7 {[%clk 0:01:22]} 21. Bf4 {[%clk 0:01:26]}  Qd8 {[%clk 0:01:04]} 22. Qxc6 {[%clk 0:01:21]}  Nd5 {[%clk 0:01:00]} 23. Nxe6 {[%clk 0:01:19]}  fxe6 {[%clk 0:00:57]} 24. Rxe6 {[%clk 0:01:17]}  Rxe6 {[%clk 0:00:53]} 25. Qxe6+ {[%clk 0:01:16]}  Kh8 {[%clk 0:00:54]} 26. Bg3 {[%clk 0:00:36]}  f4 {[%clk 0:00:42]} 27. Bh4 {[%clk 0:00:31]}  g5 {[%clk 0:00:21]} 28. Qf5 {[%clk 0:00:31]} 1-0


[Site "https://www.chess.com"]

[Event "Titled Tuesday Blitz June 20 Early 2023"]
[White "Akylbek2021"]
[Black "agvania123"]
[WhiteElo "2504"]
[BlackElo "2257"]
[Result "1-0"]
[Round "2"]
[TimeControl "180+2"]
[Date "2023.06.20"]
[WhiteClock "0:01:44"]
[BlackClock "0:00:18"]
[Board "197"]

1. e4 {[%clk 0:02:58]}  d5 {[%clk 0:02:58]} 2. exd5 {[%clk 0:02:58]}  Qxd5 {[%clk 0:02:59]} 3. Nc3 {[%clk 0:02:59]}  Qd8 {[%clk 0:03:00]} 4. Bc4 {[%clk 0:02:58]}  Nf6 {[%clk 0:03:00]} 5. Nf3 {[%clk 0:02:57]}  a6 {[%clk 0:03:01]} 6. a4 {[%clk 0:02:54]}  Nc6 {[%clk 0:03:00]} 7. h3 {[%clk 0:02:53]}  Bf5 {[%clk 0:02:56]} 8. g4 {[%clk 0:02:53]}  Bg6 {[%clk 0:02:55]} 9. d4 {[%clk 0:02:53]}  e6 {[%clk 0:02:54]} 10. Bg5 {[%clk 0:02:43]}  Be7 {[%clk 0:02:52]} 11. Qd2 {[%clk 0:02:42]}  Ne4 {[%clk 0:02:36]} 12. Nxe4 {[%clk 0:02:42]}  Bxe4 {[%clk 0:02:37]} 13. Bxe7 {[%clk 0:02:41]}  Qxe7 {[%clk 0:02:37]} 14. Qe2 {[%clk 0:02:39]}  Bxf3 {[%clk 0:01:51]} 15. Qxf3 {[%clk 0:02:40]}  Nxd4 {[%clk 0:01:46]} 16. Qxb7 {[%clk 0:02:33]}  O-O {[%clk 0:01:45]} 17. O-O-O {[%clk 0:02:26]}  Qc5 {[%clk 0:01:26]} 18. Qe4 {[%clk 0:02:14]}  Qxc4 {[%clk 0:01:18]} 19. Qxd4 {[%clk 0:02:13]}  Qa2 {[%clk 0:00:59]} 20. b3 {[%clk 0:02:13]}  Rad8 {[%clk 0:00:58]} 21. Qb2 {[%clk 0:02:12]}  Qxb2+ {[%clk 0:00:51]} 22. Kxb2 {[%clk 0:02:12]}  c5 {[%clk 0:00:51]} 23. Kc3 {[%clk 0:02:12]}  Rd5 {[%clk 0:00:50]} 24. Rxd5 {[%clk 0:02:05]}  exd5 {[%clk 0:00:50]} 25. Re1 {[%clk 0:02:05]}  Rd8 {[%clk 0:00:43]} 26. Re7 {[%clk 0:02:05]}  g6 {[%clk 0:00:38]} 27. Rc7 {[%clk 0:02:01]}  c4 {[%clk 0:00:37]} 28. b4 {[%clk 0:02:00]}  Rd6 {[%clk 0:00:33]} 29. Kd4 {[%clk 0:01:56]}  Kg7 {[%clk 0:00:30]} 30. Kc5 {[%clk 0:01:51]}  Rd8 {[%clk 0:00:29]} 31. Rc6 {[%clk 0:01:51]}  c3 {[%clk 0:00:28]} 32. Kd4 {[%clk 0:01:49]}  Re8 {[%clk 0:00:23]} 33. Rxa6 {[%clk 0:01:46]}  Re2 {[%clk 0:00:23]} 34. Kxc3 {[%clk 0:01:46]}  Rxf2 {[%clk 0:00:23]} 35. a5 {[%clk 0:01:46]}  d4+ {[%clk 0:00:18]} 36. Kxd4 {[%clk 0:01:44]} 1-0


[Site "https://www.chess.com"]

[Event "Titled Tuesday Blitz June 20 Early 2023"]
[White "Peiris, T G M"]
[Black "Kuzmin, Roman"]
[WhiteFideId "9901310"]
[BlackFideId "44134932"]
[WhiteElo "2022"]
[BlackElo "2122"]
[Result "0-1"]
[Round "2"]
[TimeControl "180+2"]
[Date "2023.06.20"]
[WhiteClock "0:00:00"]
[BlackClock "0:00:51"]
[Board "198"]

1. e4 {[%clk 0:03:00]}  c5 {[%clk 0:02:59]} 2. c3 {[%clk 0:03:00]}  d5 {[%clk 0:02:58]} 3. exd5 {[%clk 0:02:59]}  Qxd5 {[%clk 0:02:59]} 4. d4 {[%clk 0:02:58]}  Nf6 {[%clk 0:03:00]} 5. Nf3 {[%clk 0:02:54]}  Nc6 {[%clk 0:02:59]} 6. Be2 {[%clk 0:02:47]}  Bg4 {[%clk 0:02:57]} 7. c4 {[%clk 0:02:44]}  Qd7 {[%clk 0:02:53]} 8. d5 {[%clk 0:02:41]}  Bxf3 {[%clk 0:02:54]} 9. Bxf3 {[%clk 0:02:31]}  Nd4 {[%clk 0:02:55]} 10. Be3 {[%clk 0:02:26]}  g6 {[%clk 0:02:46]} 11. Bxd4 {[%clk 0:02:23]}  cxd4 {[%clk 0:02:47]} 12. Qxd4 {[%clk 0:02:23]}  Bg7 {[%clk 0:02:48]} 13. Qe3 {[%clk 0:02:16]}  O-O {[%clk 0:02:48]} 14. Nc3 {[%clk 0:02:15]}  Rac8 {[%clk 0:02:48]} 15. Be2 {[%clk 0:02:10]}  Rfe8 {[%clk 0:02:40]} 16. Qxa7 {[%clk 0:02:01]}  e6 {[%clk 0:02:21]} 17. dxe6 {[%clk 0:01:49]}  Rxe6 {[%clk 0:02:22]} 18. O-O {[%clk 0:01:47]}  Rce8 {[%clk 0:02:21]} 19. Bf3 {[%clk 0:01:43]}  R6e7 {[%clk 0:02:20]} 20. Rad1 {[%clk 0:01:38]}  Qf5 {[%clk 0:02:19]} 21. Nd5 {[%clk 0:01:27]}  Nxd5 {[%clk 0:02:18]} 22. Rxd5 {[%clk 0:01:22]}  Qf4 {[%clk 0:02:18]} 23. Qa3 {[%clk 0:00:42]}  Qxc4 {[%clk 0:02:12]} 24. g3 {[%clk 0:00:41]}  h5 {[%clk 0:01:58]} 25. Rc5 {[%clk 0:00:36]}  Qd4 {[%clk 0:01:56]} 26. Bg2 {[%clk 0:00:32]}  Re2 {[%clk 0:01:42]} 27. Rd5 {[%clk 0:00:27]}  Qc4 {[%clk 0:01:42]} 28. b3 {[%clk 0:00:21]}  Qc2 {[%clk 0:01:37]} 29. Qc5 {[%clk 0:00:19]}  Qxa2 {[%clk 0:01:34]} 30. Rd7 {[%clk 0:00:15]}  Re1 {[%clk 0:01:20]} 31. Rxb7 {[%clk 0:00:13]}  Qa1 {[%clk 0:01:15]} 32. Qd5 {[%clk 0:00:12]}  Qf6 {[%clk 0:01:08]} 33. Qd7 {[%clk 0:00:10]}  Bh6 {[%clk 0:00:55]} 34. Bd5 {[%clk 0:00:09]}  R1e7 {[%clk 0:00:52]} 35. Bxf7+ {[%clk 0:00:00]}  Qxf7 {[%clk 0:00:51]} 0-1


[Site "https://www.chess.com"]

[Event "Titled Tuesday Blitz June 20 Early 2023"]
[White "Rodchenkov, Sergey D."]
[Black "Nithyalakshmi, Sivanesan"]
[WhiteFideId "4168712"]
[BlackFideId "5706955"]
[WhiteElo "2277"]
[BlackElo "1815"]
[Result "1-0"]
[Round "2"]
[TimeControl "180+2"]
[Date "2023.06.20"]
[WhiteClock "0:00:07"]
[BlackClock "0:00:00"]
[Board "201"]

1. e4 {[%clk 0:03:00]}  e6 {[%clk 0:02:59]} 2. d4 {[%clk 0:03:00]}  d5 {[%clk 0:02:59]} 3. Nc3 {[%clk 0:03:01]}  Nf6 {[%clk 0:02:58]} 4. e5 {[%clk 0:03:01]}  Ng8 {[%clk 0:02:58]} 5. f4 {[%clk 0:03:01]}  Nh6 {[%clk 0:02:55]} 6. Nf3 {[%clk 0:03:00]}  c5 {[%clk 0:02:52]} 7. Be3 {[%clk 0:02:45]}  Nf5 {[%clk 0:02:51]} 8. Bf2 {[%clk 0:02:45]}  Qb6 {[%clk 0:02:51]} 9. Na4 {[%clk 0:02:41]}  Qa5+ {[%clk 0:02:43]} 10. c3 {[%clk 0:02:41]}  c4 {[%clk 0:02:33]} 11. b4 {[%clk 0:02:16]}  cxb3 {[%clk 0:02:28]} 12. Qxb3 {[%clk 0:02:12]}  Bd7 {[%clk 0:02:06]} 13. Nb2 {[%clk 0:02:02]}  Na6 {[%clk 0:01:51]} 14. g4 {[%clk 0:01:43]}  Ne7 {[%clk 0:01:35]} 15. Bd3 {[%clk 0:01:24]}  h5 {[%clk 0:01:07]} 16. g5 {[%clk 0:01:13]}  Qb6 {[%clk 0:01:02]} 17. O-O {[%clk 0:01:09]}  Rc8 {[%clk 0:00:58]} 18. Qc2 {[%clk 0:01:06]}  g6 {[%clk 0:00:49]} 19. a3 {[%clk 0:01:05]}  Nf5 {[%clk 0:00:49]} 20. c4 {[%clk 0:01:05]}  dxc4 {[%clk 0:00:43]} 21. Nxc4 {[%clk 0:01:04]}  Qc6 {[%clk 0:00:37]} 22. Qe2 {[%clk 0:00:55]}  Nc7 {[%clk 0:00:32]} 23. Rfc1 {[%clk 0:00:52]}  Qa4 {[%clk 0:00:27]} 24. Rab1 {[%clk 0:00:41]}  Nd5 {[%clk 0:00:26]} 25. Qd2 {[%clk 0:00:26]}  b6 {[%clk 0:00:20]} 26. Ne3 {[%clk 0:00:10]}  Nfxe3 {[%clk 0:00:19]} 27. Rxc8+ {[%clk 0:00:09]}  Bxc8 {[%clk 0:00:19]} 28. Bb5+ {[%clk 0:00:10]}  Qxb5 {[%clk 0:00:17]} 29. Rxb5 {[%clk 0:00:11]}  Bd7 {[%clk 0:00:18]} 30. Rb1 {[%clk 0:00:10]}  Nf5 {[%clk 0:00:16]} 31. Qc1 {[%clk 0:00:08]}  Be7 {[%clk 0:00:16]} 32. Nd2 {[%clk 0:00:08]}  O-O {[%clk 0:00:16]} 33. Ne4 {[%clk 0:00:09]}  Rc8 {[%clk 0:00:16]} 34. Qe1 {[%clk 0:00:09]}  Nxf4 {[%clk 0:00:16]} 35. Qd2 {[%clk 0:00:07]}  Nd5 {[%clk 0:00:14]} 36. Rc1 {[%clk 0:00:07]}  Rb8 {[%clk 0:00:14]} 37. h4 {[%clk 0:00:05]}  Kg7 {[%clk 0:00:13]} 38. Qd1 {[%clk 0:00:05]}  Nf4 {[%clk 0:00:11]} 39. Qd2 {[%clk 0:00:05]}  Nd5 {[%clk 0:00:11]} 40. Kh2 {[%clk 0:00:05]}  Bxa3 {[%clk 0:00:11]} 41. Nf6 {[%clk 0:00:06]}  Bxc1 {[%clk 0:00:09]} 42. Qxc1 {[%clk 0:00:07]}  Bb5 {[%clk 0:00:09]} 43. Nxd5 {[%clk 0:00:07]}  exd5 {[%clk 0:00:08]} 44. Qc7 {[%clk 0:00:07]}  Re8 {[%clk 0:00:06]} 45. Bg3 {[%clk 0:00:08]}  a6 {[%clk 0:00:05]} 46. e6 {[%clk 0:00:07]}  Rxe6 {[%clk 0:00:04]} 47. Be5+ {[%clk 0:00:08]}  Rxe5 {[%clk 0:00:03]} 48. Qxe5+ {[%clk 0:00:08]}  Kg8 {[%clk 0:00:00]} 49. Qxd5 {[%clk 0:00:07]} 1-0


[Site "https://www.chess.com"]

[Event "Titled Tuesday Blitz June 20 Early 2023"]
[White "Thiel, Thomas"]
[Black "Shuvalov, Evgenij"]
[WhiteFideId "4615964"]
[BlackFideId "4187237"]
[WhiteElo "2231"]
[BlackElo "2080"]
[Result "0-1"]
[Round "2"]
[TimeControl "180+2"]
[Date "2023.06.20"]
[WhiteClock "0:01:16"]
[BlackClock "0:01:56"]
[Board "202"]

1. e4 {[%clk 0:03:00]}  e6 {[%clk 0:02:59]} 2. d4 {[%clk 0:02:58]}  d5 {[%clk 0:03:00]} 3. Nc3 {[%clk 0:02:58]}  Bb4 {[%clk 0:02:59]} 4. e5 {[%clk 0:02:56]}  c5 {[%clk 0:02:59]} 5. a3 {[%clk 0:02:54]}  Bxc3+ {[%clk 0:02:59]} 6. bxc3 {[%clk 0:02:54]}  Ne7 {[%clk 0:03:00]} 7. Qg4 {[%clk 0:02:52]}  Qc7 {[%clk 0:03:00]} 8. Qxg7 {[%clk 0:02:51]}  Rg8 {[%clk 0:02:59]} 9. Qxh7 {[%clk 0:02:52]}  cxd4 {[%clk 0:03:00]} 10. Ne2 {[%clk 0:02:48]}  Nbc6 {[%clk 0:02:59]} 11. f4 {[%clk 0:02:48]}  Bd7 {[%clk 0:02:58]} 12. Qd3 {[%clk 0:02:46]}  dxc3 {[%clk 0:02:58]} 13. Nxc3 {[%clk 0:02:44]}  a6 {[%clk 0:02:57]} 14. Ne2 {[%clk 0:02:42]}  Rc8 {[%clk 0:02:50]} 15. Bb2 {[%clk 0:02:39]}  Na7 {[%clk 0:02:37]} 16. Nd4 {[%clk 0:02:36]}  Nb5 {[%clk 0:02:36]} 17. Nb3 {[%clk 0:02:15]}  Qxc2 {[%clk 0:02:27]} 18. Qxc2 {[%clk 0:02:04]}  Rxc2 {[%clk 0:02:28]} 19. Bc1 {[%clk 0:02:03]}  Nf5 {[%clk 0:02:27]} 20. Bd3 {[%clk 0:01:54]}  Rcxg2 {[%clk 0:02:26]} 21. Bxf5 {[%clk 0:01:54]}  exf5 {[%clk 0:02:27]} 22. h4 {[%clk 0:01:52]}  Nc3 {[%clk 0:02:24]} 23. h5 {[%clk 0:01:42]}  Re2+ {[%clk 0:02:07]} 24. Kf1 {[%clk 0:01:40]}  Rgg2 {[%clk 0:02:08]} 25. h6 {[%clk 0:01:29]}  Ne4 {[%clk 0:01:58]} 26. Rh3 {[%clk 0:01:16]}  Rgf2+ {[%clk 0:01:55]} 27. Kg1 {[%clk 0:01:16]}  Re1# {[%clk 0:01:56]} 0-1


[Site "https://www.chess.com"]

[Event "Titled Tuesday Blitz June 20 Early 2023"]
[White "La Villa Rivas, Marlon Javier"]
[Black "Zheenbekov, Nurgazy"]
[WhiteFideId "3519546"]
[BlackFideId "13800485"]
[WhiteElo "2135"]
[BlackElo "1975"]
[Result "0-1"]
[Round "2"]
[TimeControl "180+2"]
[Date "2023.06.20"]
[WhiteClock "0:00:08"]
[BlackClock "0:00:04"]
[Board "203"]

1. e4 {[%clk 0:02:18]}  e5 {[%clk 0:02:58]} 2. Nf3 {[%clk 0:02:17]}  Nc6 {[%clk 0:02:57]} 3. Bb5 {[%clk 0:02:17]}  a6 {[%clk 0:02:56]} 4. Ba4 {[%clk 0:02:17]}  Nf6 {[%clk 0:02:55]} 5. d3 {[%clk 0:02:18]}  b5 {[%clk 0:02:54]} 6. Bb3 {[%clk 0:02:18]}  Be7 {[%clk 0:02:54]} 7. g4 {[%clk 0:02:17]}  d6 {[%clk 0:02:47]} 8. g5 {[%clk 0:02:16]}  Nd7 {[%clk 0:02:44]} 9. Bd5 {[%clk 0:02:16]}  Bb7 {[%clk 0:02:44]} 10. Be3 {[%clk 0:02:16]}  Nb6 {[%clk 0:02:40]} 11. Bxb6 {[%clk 0:02:15]}  cxb6 {[%clk 0:02:40]} 12. h4 {[%clk 0:02:16]}  Na5 {[%clk 0:02:26]} 13. Nc3 {[%clk 0:02:15]}  Nc6 {[%clk 0:02:16]} 14. Qd2 {[%clk 0:02:13]}  b4 {[%clk 0:02:15]} 15. Ne2 {[%clk 0:02:13]}  a5 {[%clk 0:02:14]} 16. d4 {[%clk 0:02:11]}  Qc7 {[%clk 0:02:09]} 17. O-O-O {[%clk 0:02:06]}  O-O-O {[%clk 0:02:03]} 18. Bxc6 {[%clk 0:02:03]}  Bxc6 {[%clk 0:02:01]} 19. d5 {[%clk 0:02:03]}  Bb5 {[%clk 0:01:59]} 20. Kb1 {[%clk 0:02:03]}  Kb7 {[%clk 0:01:56]} 21. Nc1 {[%clk 0:02:01]}  Rc8 {[%clk 0:01:55]} 22. Nb3 {[%clk 0:02:01]}  h6 {[%clk 0:01:45]} 23. Rhg1 {[%clk 0:01:59]}  hxg5 {[%clk 0:01:42]} 24. Nxg5 {[%clk 0:01:58]}  Bf6 {[%clk 0:01:41]} 25. Rc1 {[%clk 0:01:53]}  Rxh4 {[%clk 0:01:35]} 26. c4 {[%clk 0:01:50]}  Ba4 {[%clk 0:01:15]} 27. c5 {[%clk 0:01:46]}  bxc5 {[%clk 0:01:15]} 28. Nf3 {[%clk 0:01:41]}  Rf4 {[%clk 0:01:09]} 29. Qe2 {[%clk 0:01:31]}  Qb6 {[%clk 0:01:07]} 30. Nfd2 {[%clk 0:01:29]}  Bb5 {[%clk 0:01:02]} 31. Nc4 {[%clk 0:01:29]}  Bxc4 {[%clk 0:01:00]} 32. Qxc4 {[%clk 0:01:30]}  Rh8 {[%clk 0:00:55]} 33. Rc2 {[%clk 0:01:16]}  Rhh4 {[%clk 0:00:54]} 34. Nd2 {[%clk 0:01:14]}  Rxf2 {[%clk 0:00:51]} 35. Qd3 {[%clk 0:01:13]}  Rhh2 {[%clk 0:00:45]} 36. Nc4 {[%clk 0:01:08]}  Qa6 {[%clk 0:00:45]} 37. Rxf2 {[%clk 0:00:59]}  Rxf2 {[%clk 0:00:44]} 38. b3 {[%clk 0:00:58]}  a4 {[%clk 0:00:45]} 39. Rh1 {[%clk 0:00:55]}  axb3 {[%clk 0:00:45]} 40. Qxb3 {[%clk 0:00:55]}  Rf3 {[%clk 0:00:36]} 41. Qxf3 {[%clk 0:00:53]}  Qxc4 {[%clk 0:00:36]} 42. Rc1 {[%clk 0:00:50]}  Qd4 {[%clk 0:00:28]} 43. Qe2 {[%clk 0:00:49]}  Kb6 {[%clk 0:00:28]} 44. Rc4 {[%clk 0:00:44]}  Qg1+ {[%clk 0:00:27]} 45. Kb2 {[%clk 0:00:43]}  Bg5 {[%clk 0:00:27]} 46. a3 {[%clk 0:00:36]}  Be3 {[%clk 0:00:26]} 47. axb4 {[%clk 0:00:34]}  Bd4+ {[%clk 0:00:25]} 48. Kc2 {[%clk 0:00:34]}  cxb4 {[%clk 0:00:19]} 49. Rxb4+ {[%clk 0:00:34]}  Kc7 {[%clk 0:00:14]} 50. Qc4+ {[%clk 0:00:34]}  Bc5 {[%clk 0:00:15]} 51. Ra4 {[%clk 0:00:32]}  Qf2+ {[%clk 0:00:13]} 52. Kb3 {[%clk 0:00:31]}  Qe3+ {[%clk 0:00:12]} 53. Qc3 {[%clk 0:00:31]}  Qe2 {[%clk 0:00:09]} 54. Qa5+ {[%clk 0:00:30]}  Kd7 {[%clk 0:00:07]} 55. Ra2 {[%clk 0:00:26]}  Qd3+ {[%clk 0:00:06]} 56. Qc3 {[%clk 0:00:26]}  Qb1+ {[%clk 0:00:04]} 57. Rb2 {[%clk 0:00:25]}  Qxe4 {[%clk 0:00:04]} 58. Ka2 {[%clk 0:00:19]}  Qxd5+ {[%clk 0:00:04]} 59. Ka1 {[%clk 0:00:18]}  Bd4 {[%clk 0:00:04]} 60. Qh3+ {[%clk 0:00:08]}  Qe6 {[%clk 0:00:04]} 0-1


[Site "https://www.chess.com"]